[Event "Titled Tuesday Blitz December 27 Early 2022"]
[White "Wagner, Dinara"]
[Black "Rustemov, Alexander"]
[WhiteFideId "24157570"]
[BlackFideId "4119002"]
[WhiteElo "2417"]
[BlackElo "2525"]
[Result "0-1"]
[Round "07"]
[TimeControl "180+2"]
[Date "2022.12.27"]
[WhiteClock "0:00:07"]
[BlackClock "0:00:06"]

1. d4 {[%clk 0:03:00]}  d5 {[%clk 0:02:54]} 2. c4 {[%clk 0:03:00]}  dxc4 {[%clk 0:02:54]} 3. Nf3 {[%clk 0:02:59]}  Nf6 {[%clk 0:02:54]} 4. e3 {[%clk 0:03:00]}  e6 {[%clk 0:02:54]} 5. Bxc4 {[%clk 0:03:00]}  c5 {[%clk 0:02:54]} 6. O-O {[%clk 0:02:55]}  a6 {[%clk 0:02:54]} 7. b3 {[%clk 0:02:44]}  Nbd7 {[%clk 0:02:47]} 8. Bb2 {[%clk 0:02:42]}  Be7 {[%clk 0:02:44]} 9. Nbd2 {[%clk 0:02:43]}  O-O {[%clk 0:02:43]} 10. Be2 {[%clk 0:02:41]}  b6 {[%clk 0:02:41]} 11. dxc5 {[%clk 0:02:40]}  Bxc5 {[%clk 0:02:36]} 12. Nd4 {[%clk 0:02:38]}  Bb7 {[%clk 0:02:35]} 13. Bf3 {[%clk 0:02:38]}  Qb8 {[%clk 0:02:20]} 14. Rc1 {[%clk 0:02:28]}  Rc8 {[%clk 0:02:16]} 15. Nc4 {[%clk 0:02:23]}  Bxf3 {[%clk 0:01:48]} 16. Qxf3 {[%clk 0:02:21]}  Ne5 {[%clk 0:01:44]} 17. Nxe5 {[%clk 0:01:14]}  Qxe5 {[%clk 0:01:45]} 18. Rc2 {[%clk 0:01:12]}  Bd6 {[%clk 0:01:30]} 19. Rxc8+ {[%clk 0:00:56]}  Rxc8 {[%clk 0:01:31]} 20. g3 {[%clk 0:00:53]}  Qe4 {[%clk 0:01:22]} 21. Qxe4 {[%clk 0:00:42]}  Nxe4 {[%clk 0:01:23]} 22. Rd1 {[%clk 0:00:41]}  Be7 {[%clk 0:00:58]} 23. f3 {[%clk 0:00:35]}  Nc5 {[%clk 0:00:52]} 24. Kf2 {[%clk 0:00:29]}  f6 {[%clk 0:00:51]} 25. Ke2 {[%clk 0:00:29]}  Kf7 {[%clk 0:00:50]} 26. Rc1 {[%clk 0:00:28]}  a5 {[%clk 0:00:42]} 27. e4 {[%clk 0:00:28]}  g6 {[%clk 0:00:39]} 28. Nb5 {[%clk 0:00:28]}  e5 {[%clk 0:00:37]} 29. Nc3 {[%clk 0:00:25]}  Nd7 {[%clk 0:00:32]} 30. Nd5 {[%clk 0:00:24]}  Rxc1 {[%clk 0:00:31]} 31. Bxc1 {[%clk 0:00:25]}  Bc5 {[%clk 0:00:31]} 32. Be3 {[%clk 0:00:25]}  Bxe3 {[%clk 0:00:30]} 33. Kxe3 {[%clk 0:00:26]}  Ke6 {[%clk 0:00:28]} 34. Kd3 {[%clk 0:00:26]}  Kd6 {[%clk 0:00:28]} 35. Kc4 {[%clk 0:00:26]}  f5 {[%clk 0:00:27]} 36. a4 {[%clk 0:00:26]}  fxe4 {[%clk 0:00:24]} 37. fxe4 {[%clk 0:00:26]}  Nc5 {[%clk 0:00:25]} 38. Nxb6 {[%clk 0:00:24]}  Nxe4 {[%clk 0:00:25]} 39. Kd3 {[%clk 0:00:21]}  Nc5+ {[%clk 0:00:24]} 40. Kc3 {[%clk 0:00:20]}  e4 {[%clk 0:00:18]} 41. Nc4+ {[%clk 0:00:20]}  Kd5 {[%clk 0:00:19]} 42. Nxa5 {[%clk 0:00:20]}  e3 {[%clk 0:00:19]} 43. Nc4 {[%clk 0:00:19]}  e2 {[%clk 0:00:16]} 44. Ne3+ {[%clk 0:00:16]}  Ke4 {[%clk 0:00:16]} 45. Kd2 {[%clk 0:00:17]}  Kf3 {[%clk 0:00:14]} 46. Nc2 {[%clk 0:00:12]}  Nxb3+ {[%clk 0:00:12]} 47. Ke1 {[%clk 0:00:12]}  h5 {[%clk 0:00:11]} 48. a5 {[%clk 0:00:12]}  Nxa5 {[%clk 0:00:10]} 49. Nd4+ {[%clk 0:00:12]}  Kg2 {[%clk 0:00:10]} 50. Nxe2 {[%clk 0:00:12]}  Kxh2 {[%clk 0:00:11]} 51. Kf2 {[%clk 0:00:11]}  g5 {[%clk 0:00:11]} 52. Nd4 {[%clk 0:00:11]}  g4 {[%clk 0:00:04]} 53. Ne2 {[%clk 0:00:12]}  Nc4 {[%clk 0:00:04]} 54. Nf4 {[%clk 0:00:10]}  h4 {[%clk 0:00:04]} 55. gxh4 {[%clk 0:00:11]}  g3+ {[%clk 0:00:05]} 56. Kf3 {[%clk 0:00:11]}  Ne5+ {[%clk 0:00:05]} 57. Ke3 {[%clk 0:00:05]}  Ng6 {[%clk 0:00:05]} 58. Ne2 {[%clk 0:00:05]}  g2 {[%clk 0:00:05]} 59. h5 {[%clk 0:00:05]}  Ne5 {[%clk 0:00:05]} 60. h6 {[%clk 0:00:05]}  Ng4+ {[%clk 0:00:06]} 61. Kf3 {[%clk 0:00:05]}  Nxh6 {[%clk 0:00:07]} 62. Kf2 {[%clk 0:00:05]}  Ng4+ {[%clk 0:00:07]} 63. Kf3 {[%clk 0:00:06]}  Nf6 {[%clk 0:00:07]} 64. Ke3 {[%clk 0:00:06]}  Nd5+ {[%clk 0:00:07]} 65. Kd3 {[%clk 0:00:04]}  Nf4+ {[%clk 0:00:07]} 66. Nxf4 {[%clk 0:00:04]}  g1=Q {[%clk 0:00:06]} 67. Ne2 {[%clk 0:00:04]}  Qd1+ {[%clk 0:00:06]} 68. Ke3 {[%clk 0:00:04]}  Kh3 {[%clk 0:00:06]} 69. Nf4+ {[%clk 0:00:05]}  Kg4 {[%clk 0:00:06]} 70. Ne2 {[%clk 0:00:05]}  Qb3+ {[%clk 0:00:06]} 71. Kd2 {[%clk 0:00:05]}  Qa2+ {[%clk 0:00:06]} 72. Ke3 {[%clk 0:00:05]}  Kf5 {[%clk 0:00:07]} 73. Nd4+ {[%clk 0:00:06]}  Ke5 {[%clk 0:00:07]} 74. Ne2 {[%clk 0:00:07]}  Qa3+ {[%clk 0:00:06]} 75. Kf2 {[%clk 0:00:07]}  Ke4 {[%clk 0:00:06]} 76. Ng3+ {[%clk 0:00:08]}  Kf4 {[%clk 0:00:07]} 77. Ne2+ {[%clk 0:00:09]}  Kg4 {[%clk 0:00:07]} 78. Ke1 {[%clk 0:00:08]}  Qd3 {[%clk 0:00:07]} 79. Kf2 {[%clk 0:00:07]}  Qd2 {[%clk 0:00:07]} 80. Kf1 {[%clk 0:00:07]}  Kf3 {[%clk 0:00:07]} 81. Ng1+ {[%clk 0:00:07]}  Ke3 {[%clk 0:00:08]} 82. Nh3 {[%clk 0:00:07]}  Qe2+ {[%clk 0:00:07]} 83. Kg1 {[%clk 0:00:07]}  Kf3 {[%clk 0:00:06]} 84. Kh1 {[%clk 0:00:07]}  Kg3 {[%clk 0:00:06]} 85. Ng1 {[%clk 0:00:07]}  Qg2# {[%clk 0:00:06]} 0-1


[Site "https://www.chess.com"]

[Event "Titled Tuesday Blitz December 27 Early 2022"]
[White "Warchol, Kamil"]
[Black "Ljukin, Sergei"]
[WhiteFideId "21858241"]
[BlackFideId "14102200"]
[WhiteElo "2173"]
[BlackElo "2362"]
[Result "0-1"]
[Round "07"]
[TimeControl "180+2"]
[Date "2022.12.27"]
[WhiteClock "0:00:01"]
[BlackClock "0:00:34"]

1. e4 {[%clk 0:02:37]}  e6 {[%clk 0:02:57]} 2. d4 {[%clk 0:02:36]}  d5 {[%clk 0:02:57]} 3. Nc3 {[%clk 0:02:35]}  Bb4 {[%clk 0:02:56]} 4. e5 {[%clk 0:02:16]}  Ne7 {[%clk 0:02:54]} 5. a3 {[%clk 0:02:15]}  Bxc3+ {[%clk 0:02:53]} 6. bxc3 {[%clk 0:02:15]}  c5 {[%clk 0:02:54]} 7. Qg4 {[%clk 0:02:05]}  Qc7 {[%clk 0:02:53]} 8. Qxg7 {[%clk 0:01:52]}  Rg8 {[%clk 0:02:51]} 9. Qxh7 {[%clk 0:01:50]}  cxd4 {[%clk 0:02:51]} 10. Ne2 {[%clk 0:01:51]}  Nbc6 {[%clk 0:02:51]} 11. h4 {[%clk 0:01:33]}  Bd7 {[%clk 0:02:25]} 12. f4 {[%clk 0:01:05]}  dxc3 {[%clk 0:02:21]} 13. h5 {[%clk 0:00:59]}  O-O-O {[%clk 0:02:15]} 14. Qd3 {[%clk 0:00:58]}  d4 {[%clk 0:02:04]} 15. Nxd4 {[%clk 0:00:43]}  Nxd4 {[%clk 0:01:54]} 16. Qxd4 {[%clk 0:00:41]}  Nf5 {[%clk 0:01:47]} 17. Qxa7 {[%clk 0:00:35]}  Qc6 {[%clk 0:01:47]} 18. Qa8+ {[%clk 0:00:28]}  Kc7 {[%clk 0:01:46]} 19. Qa5+ {[%clk 0:00:28]}  Kb8 {[%clk 0:01:47]} 20. Qb4 {[%clk 0:00:10]}  Bc8 {[%clk 0:01:46]} 21. Rh3 {[%clk 0:00:09]}  Rd4 {[%clk 0:01:44]} 22. Qxc3 {[%clk 0:00:07]}  Re4+ {[%clk 0:01:40]} 23. Kd1 {[%clk 0:00:03]}  Rd8+ {[%clk 0:01:30]} 24. Bd2 {[%clk 0:00:04]}  Qb6 {[%clk 0:01:11]} 25. Bd3 {[%clk 0:00:03]}  Qg1+ {[%clk 0:01:08]} 26. Be1 {[%clk 0:00:03]}  Ne3+ {[%clk 0:00:59]} 27. Rxe3 {[%clk 0:00:02]}  Qxe3 {[%clk 0:00:57]} 28. Qd2 {[%clk 0:00:02]}  Qxf4 {[%clk 0:00:53]} 29. Qxf4 {[%clk 0:00:01]}  Rxf4 {[%clk 0:00:53]} 30. Kd2 {[%clk 0:00:01]}  Bd7 {[%clk 0:00:49]} 31. Bg3 {[%clk 0:00:01]}  Rg4 {[%clk 0:00:48]} 32. Bf2 {[%clk 0:00:01]}  Rxg2 {[%clk 0:00:48]} 33. Ke3 {[%clk 0:00:02]}  Bc6 {[%clk 0:00:48]} 34. Bh4 {[%clk 0:00:02]}  Rd5 {[%clk 0:00:44]} 35. Bf6 {[%clk 0:00:01]}  Rh2 {[%clk 0:00:43]} 36. Be2 {[%clk 0:00:01]}  Rc5 {[%clk 0:00:38]} 37. Rg1 {[%clk 0:00:02]}  Rc3+ {[%clk 0:00:38]} 38. Kd2 {[%clk 0:00:02]}  Rch3 {[%clk 0:00:36]} 39. Rg8+ {[%clk 0:00:02]}  Ka7 {[%clk 0:00:36]} 40. Kd1 {[%clk 0:00:01]}  Bf3 {[%clk 0:00:34]} 41. Bxf3 {[%clk 0:00:01]}  Rxf3 {[%clk 0:00:34]} 42. Rg7 {[%clk 0:00:01]}  Rf1# {[%clk 0:00:34]} 0-1


[Site "https://www.chess.com"]

[Event "Titled Tuesday Blitz December 27 Early 2022"]
[White "Weetik, Vjacheslav"]
[Black "Moral Garcia, Serafin"]
[WhiteFideId "4153472"]
[BlackFideId "2201925"]
[WhiteElo "2423"]
[BlackElo "2238"]
[Result "1-0"]
[Round "07"]
[TimeControl "180+2"]
[Date "2022.12.27"]
[WhiteClock "0:00:06"]
[BlackClock "0:00:08"]

1. d4 {[%clk 0:02:59]}  Nf6 {[%clk 0:02:35]} 2. Nf3 {[%clk 0:02:58]}  g6 {[%clk 0:02:34]} 3. c4 {[%clk 0:02:56]}  Bg7 {[%clk 0:02:34]} 4. g3 {[%clk 0:02:57]}  d5 {[%clk 0:02:32]} 5. Bg2 {[%clk 0:02:55]}  O-O {[%clk 0:02:31]} 6. O-O {[%clk 0:02:56]}  dxc4 {[%clk 0:02:31]} 7. Na3 {[%clk 0:02:54]}  c3 {[%clk 0:02:31]} 8. bxc3 {[%clk 0:02:55]}  c5 {[%clk 0:02:32]} 9. Ne5 {[%clk 0:02:51]}  Nc6 {[%clk 0:02:20]} 10. Nxc6 {[%clk 0:02:40]}  bxc6 {[%clk 0:02:20]} 11. Bxc6 {[%clk 0:02:40]}  Bh3 {[%clk 0:02:19]} 12. Bg2 {[%clk 0:02:37]}  Bxg2 {[%clk 0:02:18]} 13. Kxg2 {[%clk 0:02:37]}  Ne4 {[%clk 0:02:11]} 14. Qd3 {[%clk 0:02:35]}  Nxc3 {[%clk 0:02:09]} 15. dxc5 {[%clk 0:02:21]}  Nxe2 {[%clk 0:02:00]} 16. Qxd8 {[%clk 0:02:07]}  Rfxd8 {[%clk 0:02:00]} 17. Rb1 {[%clk 0:02:07]}  Rac8 {[%clk 0:01:43]} 18. Be3 {[%clk 0:02:07]}  Nc3 {[%clk 0:01:39]} 19. Rb7 {[%clk 0:02:05]}  Nd5 {[%clk 0:01:39]} 20. Bg5 {[%clk 0:01:48]}  Rxc5 {[%clk 0:01:26]} 21. Rxa7 {[%clk 0:01:43]}  f6 {[%clk 0:01:14]} 22. Bd2 {[%clk 0:01:33]}  Kf7 {[%clk 0:01:02]} 23. Re1 {[%clk 0:01:27]}  Bf8 {[%clk 0:01:01]} 24. Re4 {[%clk 0:01:06]}  Rc7 {[%clk 0:00:54]} 25. Rxc7 {[%clk 0:01:00]}  Nxc7 {[%clk 0:00:53]} 26. Ba5 {[%clk 0:01:00]}  Rd7 {[%clk 0:00:54]} 27. Nc4 {[%clk 0:00:57]}  e5 {[%clk 0:00:48]} 28. a4 {[%clk 0:00:49]}  Ne6 {[%clk 0:00:45]} 29. Bb6 {[%clk 0:00:46]}  Nc5 {[%clk 0:00:37]} 30. Bxc5 {[%clk 0:00:27]}  Bxc5 {[%clk 0:00:37]} 31. Re2 {[%clk 0:00:27]}  Ke6 {[%clk 0:00:26]} 32. f4 {[%clk 0:00:25]}  Bd4 {[%clk 0:00:21]} 33. fxe5 {[%clk 0:00:22]}  fxe5 {[%clk 0:00:21]} 34. a5 {[%clk 0:00:23]}  Kd5 {[%clk 0:00:19]} 35. Nb6+ {[%clk 0:00:15]}  Bxb6 {[%clk 0:00:19]} 36. axb6 {[%clk 0:00:16]}  Rb7 {[%clk 0:00:16]} 37. Rb2 {[%clk 0:00:16]}  e4 {[%clk 0:00:14]} 38. Kf2 {[%clk 0:00:14]}  Kd4 {[%clk 0:00:15]} 39. Ke2 {[%clk 0:00:09]}  h5 {[%clk 0:00:10]} 40. h4 {[%clk 0:00:07]}  Ke5 {[%clk 0:00:05]} 41. Ke3 {[%clk 0:00:07]}  Kf5 {[%clk 0:00:06]} 42. Rb5+ {[%clk 0:00:04]}  Kg4 {[%clk 0:00:06]} 43. Rg5+ {[%clk 0:00:05]}  Kh3 {[%clk 0:00:06]} 44. Rxg6 {[%clk 0:00:05]}  Kh2 {[%clk 0:00:06]} 45. Kxe4 {[%clk 0:00:06]}  Kh3 {[%clk 0:00:06]} 46. Kd5 {[%clk 0:00:06]}  Rf7 {[%clk 0:00:07]} 47. Kc6 {[%clk 0:00:06]}  Rf1 {[%clk 0:00:06]} 48. b7 {[%clk 0:00:06]}  Rc1+ {[%clk 0:00:06]} 49. Kd7 {[%clk 0:00:06]}  Rb1 {[%clk 0:00:07]} 50. Kc7 {[%clk 0:00:07]}  Rc1+ {[%clk 0:00:08]} 51. Rc6 {[%clk 0:00:07]}  Rb1 {[%clk 0:00:08]} 52. Rc3 {[%clk 0:00:06]} 1-0


[Site "https://www.chess.com"]

[Event "Titled Tuesday Blitz December 27 Early 2022"]
[White "White, John S."]
[Black "Novikova, Galina"]
[WhiteFideId "2502348"]
[BlackFideId "4157095"]
[WhiteElo "2235"]
[BlackElo "2073"]
[Result "0-1"]
[Round "07"]
[TimeControl "180+2"]
[Date "2022.12.27"]
[WhiteClock "0:00:03"]
[BlackClock "0:00:41"]

1. e4 {[%clk 0:02:58]}  e6 {[%clk 0:02:59]} 2. d3 {[%clk 0:02:57]}  d5 {[%clk 0:03:00]} 3. Nd2 {[%clk 0:02:55]}  Nf6 {[%clk 0:03:01]} 4. Ngf3 {[%clk 0:02:54]}  g6 {[%clk 0:03:01]} 5. g3 {[%clk 0:02:53]}  Bg7 {[%clk 0:03:02]} 6. Bg2 {[%clk 0:02:53]}  O-O {[%clk 0:03:02]} 7. O-O {[%clk 0:02:53]}  c5 {[%clk 0:03:03]} 8. Re1 {[%clk 0:02:52]}  Nc6 {[%clk 0:03:04]} 9. exd5 {[%clk 0:02:40]}  exd5 {[%clk 0:03:03]} 10. d4 {[%clk 0:02:34]}  c4 {[%clk 0:02:43]} 11. c3 {[%clk 0:02:33]}  Bf5 {[%clk 0:02:42]} 12. Nf1 {[%clk 0:02:31]}  Ne4 {[%clk 0:02:35]} 13. Bf4 {[%clk 0:02:26]}  b5 {[%clk 0:02:29]} 14. Ne3 {[%clk 0:02:19]}  Be6 {[%clk 0:02:27]} 15. Nc2 {[%clk 0:01:37]}  a5 {[%clk 0:02:21]} 16. Ne5 {[%clk 0:01:29]}  Nxe5 {[%clk 0:02:19]} 17. Bxe5 {[%clk 0:01:27]}  Nf6 {[%clk 0:02:03]} 18. Qf3 {[%clk 0:01:22]}  Ra7 {[%clk 0:01:52]} 19. Ne3 {[%clk 0:01:18]}  Rd7 {[%clk 0:01:49]} 20. a4 {[%clk 0:01:01]}  b4 {[%clk 0:01:47]} 21. Rad1 {[%clk 0:00:50]}  bxc3 {[%clk 0:01:36]} 22. bxc3 {[%clk 0:00:49]}  Ne4 {[%clk 0:01:37]} 23. Bxg7 {[%clk 0:00:40]}  Kxg7 {[%clk 0:01:38]} 24. Nc2 {[%clk 0:00:26]}  Rb7 {[%clk 0:01:31]} 25. Rb1 {[%clk 0:00:25]}  Rb3 {[%clk 0:01:30]} 26. Rxb3 {[%clk 0:00:22]}  cxb3 {[%clk 0:01:31]} 27. Na3 {[%clk 0:00:19]}  b2 {[%clk 0:01:29]} 28. Nb5 {[%clk 0:00:18]}  Bf5 {[%clk 0:01:03]} 29. Qe3 {[%clk 0:00:15]}  Qg5 {[%clk 0:00:50]} 30. Qxg5 {[%clk 0:00:14]}  Nxg5 {[%clk 0:00:51]} 31. Bxd5 {[%clk 0:00:09]}  b1=Q {[%clk 0:00:49]} 32. Rxb1 {[%clk 0:00:09]}  Bxb1 {[%clk 0:00:50]} 33. f4 {[%clk 0:00:09]}  Ne4 {[%clk 0:00:50]} 34. c4 {[%clk 0:00:08]}  Nf6 {[%clk 0:00:46]} 35. Bb7 {[%clk 0:00:06]}  Be4 {[%clk 0:00:46]} 36. d5 {[%clk 0:00:06]}  Rb8 {[%clk 0:00:44]} 37. Nd6 {[%clk 0:00:05]}  Bc2 {[%clk 0:00:41]} 38. Bc6 {[%clk 0:00:05]}  Rb4 {[%clk 0:00:39]} 39. Bb5 {[%clk 0:00:04]}  Bxa4 {[%clk 0:00:39]} 40. Bxa4 {[%clk 0:00:03]}  Rxa4 {[%clk 0:00:40]} 41. c5 {[%clk 0:00:03]}  Nxd5 {[%clk 0:00:39]} 42. c6 {[%clk 0:00:03]}  Ra1+ {[%clk 0:00:40]} 43. Kf2 {[%clk 0:00:03]}  Rc1 {[%clk 0:00:41]} 0-1


[Site "https://www.chess.com"]

[Event "Titled Tuesday Blitz December 27 Early 2022"]
[White "Williams, Simon K"]
[Black "Preotu, Razvan"]
[WhiteFideId "404454"]
[BlackFideId "2613280"]
[WhiteElo "2465"]
[BlackElo "2475"]
[Result "0-1"]
[Round "07"]
[TimeControl "180+2"]
[Date "2022.12.27"]
[WhiteClock "0:00:07"]
[BlackClock "0:00:23"]

1. d4 {[%clk 0:03:00]}  f5 {[%clk 0:02:58]} 2. f3 {[%clk 0:02:59]}  d5 {[%clk 0:02:55]} 3. e4 {[%clk 0:02:59]}  fxe4 {[%clk 0:02:55]} 4. fxe4 {[%clk 0:02:58]}  dxe4 {[%clk 0:02:56]} 5. Bc4 {[%clk 0:02:54]}  Nf6 {[%clk 0:02:56]} 6. Ne2 {[%clk 0:02:51]}  Nc6 {[%clk 0:02:45]} 7. O-O {[%clk 0:02:43]}  Bg4 {[%clk 0:02:44]} 8. d5 {[%clk 0:02:40]}  Ne5 {[%clk 0:02:43]} 9. Bb3 {[%clk 0:02:39]}  e6 {[%clk 0:02:38]} 10. h3 {[%clk 0:02:00]}  Bc5+ {[%clk 0:02:38]} 11. Kh1 {[%clk 0:01:58]}  h5 {[%clk 0:02:17]} 12. Bf4 {[%clk 0:01:52]}  Ng6 {[%clk 0:02:15]} 13. Bg5 {[%clk 0:01:52]}  exd5 {[%clk 0:02:12]} 14. Nbc3 {[%clk 0:01:29]}  c6 {[%clk 0:02:10]} 15. Qe1 {[%clk 0:01:28]}  Qd6 {[%clk 0:01:37]} 16. Nf4 {[%clk 0:01:22]}  Nxf4 {[%clk 0:01:32]} 17. Bxf4 {[%clk 0:01:22]}  Qe6 {[%clk 0:01:18]} 18. Na4 {[%clk 0:00:57]}  Be7 {[%clk 0:01:15]} 19. hxg4 {[%clk 0:00:53]}  hxg4+ {[%clk 0:01:16]} 20. Kg1 {[%clk 0:00:53]}  b5 {[%clk 0:01:06]} 21. Nc3 {[%clk 0:00:50]}  Bc5+ {[%clk 0:01:07]} 22. Be3 {[%clk 0:00:50]}  Qd6 {[%clk 0:01:03]} 23. Bxc5 {[%clk 0:00:44]}  Qxc5+ {[%clk 0:01:04]} 24. Qf2 {[%clk 0:00:44]}  e3 {[%clk 0:00:50]} 25. Rae1 {[%clk 0:00:37]}  d4 {[%clk 0:00:49]} 26. Qf4 {[%clk 0:00:26]}  O-O-O {[%clk 0:00:23]} 27. Ne4 {[%clk 0:00:24]}  Qh5 {[%clk 0:00:23]} 28. Qf5+ {[%clk 0:00:07]}  Qxf5 {[%clk 0:00:22]} 29. Rxf5 {[%clk 0:00:07]}  Nxe4 {[%clk 0:00:23]} 30. Rf4 {[%clk 0:00:07]}  Ng3 {[%clk 0:00:23]} 0-1


[Site "https://www.chess.com"]

[Event "Titled Tuesday Blitz December 27 Early 2022"]
[White "Yuan, Qingyu"]
[Black "Ilkhomi, Jaloliddin"]
[WhiteFideId "8609772"]
[BlackFideId "14700948"]
[WhiteElo "2373"]
[BlackElo "1997"]
[Result "1-0"]
[Round "07"]
[TimeControl "180+2"]
[Date "2022.12.27"]
[WhiteClock "0:00:58"]
[BlackClock "0:00:02"]

1. e4 {[%clk 0:03:00]}  e6 {[%clk 0:02:59]} 2. d4 {[%clk 0:03:00]}  d5 {[%clk 0:03:00]} 3. Nc3 {[%clk 0:03:01]}  Bb4 {[%clk 0:02:59]} 4. e5 {[%clk 0:03:01]}  c5 {[%clk 0:02:59]} 5. a3 {[%clk 0:03:01]}  Bxc3+ {[%clk 0:02:59]} 6. bxc3 {[%clk 0:03:02]}  Qa5 {[%clk 0:03:00]} 7. Bd2 {[%clk 0:03:02]}  Qa4 {[%clk 0:03:00]} 8. Qg4 {[%clk 0:03:02]}  g6 {[%clk 0:02:56]} 9. h4 {[%clk 0:03:02]}  h5 {[%clk 0:02:55]} 10. Qd1 {[%clk 0:02:49]}  Nc6 {[%clk 0:02:52]} 11. Nf3 {[%clk 0:02:37]}  Nge7 {[%clk 0:01:53]} 12. dxc5 {[%clk 0:02:35]}  Bd7 {[%clk 0:01:17]} 13. Bd3 {[%clk 0:02:24]}  Na5 {[%clk 0:01:02]} 14. Qb1 {[%clk 0:02:16]}  Qc6 {[%clk 0:00:38]} 15. Qb4 {[%clk 0:02:08]}  b6 {[%clk 0:00:34]} 16. Be3 {[%clk 0:01:47]}  Nc4 {[%clk 0:00:25]} 17. Bxc4 {[%clk 0:01:17]}  dxc4 {[%clk 0:00:25]} 18. Qxc4 {[%clk 0:01:15]}  Rc8 {[%clk 0:00:21]} 19. O-O {[%clk 0:01:12]}  Nf5 {[%clk 0:00:18]} 20. Bg5 {[%clk 0:01:04]}  Qxc5 {[%clk 0:00:15]} 21. Qf4 {[%clk 0:01:04]}  Bc6 {[%clk 0:00:05]} 22. Nd4 {[%clk 0:00:59]}  Qc4 {[%clk 0:00:03]} 23. Nxf5 {[%clk 0:00:57]}  Qxf4 {[%clk 0:00:01]} 24. Nd6+ {[%clk 0:00:58]}  Kd7 {[%clk 0:00:02]} 25. Bxf4 {[%clk 0:00:58]}  Bd5 {[%clk 0:00:02]} 26. Nxc8 {[%clk 0:00:58]} 1-0


[Site "https://www.chess.com"]

[Event "Titled Tuesday Blitz December 27 Early 2022"]
[White "Zierk, Steven"]
[Black "Zubritskiy, Artyom"]
[WhiteFideId "2034255"]
[BlackFideId "4181247"]
[WhiteElo "2488"]
[BlackElo "2442"]
[Result "1-0"]
[Round "07"]
[TimeControl "180+2"]
[Date "2022.12.27"]
[WhiteClock "0:00:17"]
[BlackClock "0:00:02"]

1. e4 {[%clk 0:03:00]}  c5 {[%clk 0:02:59]} 2. Nf3 {[%clk 0:03:01]}  Nf6 {[%clk 0:02:59]} 3. Nc3 {[%clk 0:02:57]}  Nc6 {[%clk 0:02:59]} 4. d4 {[%clk 0:02:56]}  d5 {[%clk 0:03:00]} 5. dxc5 {[%clk 0:02:49]}  d4 {[%clk 0:02:58]} 6. Nb5 {[%clk 0:02:49]}  e5 {[%clk 0:02:56]} 7. c3 {[%clk 0:02:31]}  Bxc5 {[%clk 0:02:42]} 8. cxd4 {[%clk 0:02:26]}  exd4 {[%clk 0:02:36]} 9. e5 {[%clk 0:02:22]}  Ng4 {[%clk 0:02:24]} 10. Bf4 {[%clk 0:02:15]}  O-O {[%clk 0:01:42]} 11. Bd3 {[%clk 0:02:09]}  Bb4+ {[%clk 0:01:32]} 12. Kf1 {[%clk 0:02:07]}  f6 {[%clk 0:01:21]} 13. e6 {[%clk 0:01:38]}  Nce5 {[%clk 0:00:43]} 14. Nxe5 {[%clk 0:01:15]}  fxe5 {[%clk 0:00:32]} 15. Qxg4 {[%clk 0:01:13]}  Rxf4 {[%clk 0:00:32]} 16. Qh5 {[%clk 0:01:11]}  e4 {[%clk 0:00:32]} 17. Bc4 {[%clk 0:01:02]}  Qe7 {[%clk 0:00:26]} 18. g3 {[%clk 0:00:49]}  Rf6 {[%clk 0:00:20]} 19. Nxd4 {[%clk 0:00:48]}  g6 {[%clk 0:00:16]} 20. Qe5 {[%clk 0:00:44]}  Bc5 {[%clk 0:00:06]} 21. Rd1 {[%clk 0:00:23]}  Kg7 {[%clk 0:00:06]} 22. Qxe4 {[%clk 0:00:19]}  Bxe6 {[%clk 0:00:02]} 23. Nxe6+ {[%clk 0:00:17]} 1-0


[Site "https://www.chess.com"]

[Event "Titled Tuesday Blitz December 27 Early 2022"]
[White "gshwbedhkhd"]
[Black "Heinemann, Josefine"]
[BlackFideId "12900460"]
[WhiteElo "2577"]
[BlackElo "2289"]
[Result "1/2-1/2"]
[Round "07"]
[TimeControl "180+2"]
[Date "2022.12.27"]
[WhiteClock "0:01:12"]
[BlackClock "0:01:17"]

1. e4 {[%clk 0:03:00]}  c6 {[%clk 0:02:58]} 2. Nf3 {[%clk 0:02:57]}  d5 {[%clk 0:02:58]} 3. Nc3 {[%clk 0:02:58]}  Bg4 {[%clk 0:02:54]} 4. h3 {[%clk 0:02:57]}  Bxf3 {[%clk 0:02:54]} 5. Qxf3 {[%clk 0:02:58]}  e6 {[%clk 0:02:55]} 6. d4 {[%clk 0:02:58]}  dxe4 {[%clk 0:02:53]} 7. Nxe4 {[%clk 0:02:59]}  Nd7 {[%clk 0:02:53]} 8. Bd3 {[%clk 0:02:56]}  Ngf6 {[%clk 0:02:52]} 9. Bg5 {[%clk 0:02:55]}  Be7 {[%clk 0:02:52]} 10. O-O-O {[%clk 0:02:54]}  Nxe4 {[%clk 0:02:44]} 11. Bxe7 {[%clk 0:02:53]}  Qxe7 {[%clk 0:02:45]} 12. Bxe4 {[%clk 0:02:54]}  O-O {[%clk 0:02:38]} 13. Kb1 {[%clk 0:02:52]}  Nf6 {[%clk 0:02:37]} 14. Bd3 {[%clk 0:02:51]}  Rfd8 {[%clk 0:02:32]} 15. g4 {[%clk 0:02:49]}  Rd7 {[%clk 0:02:27]} 16. h4 {[%clk 0:02:36]}  Rad8 {[%clk 0:02:25]} 17. g5 {[%clk 0:02:36]}  Ne8 {[%clk 0:02:20]} 18. Qh5 {[%clk 0:02:21]}  g6 {[%clk 0:02:19]} 19. Qh6 {[%clk 0:02:20]}  Qf8 {[%clk 0:02:16]} 20. Qxf8+ {[%clk 0:02:05]}  Kxf8 {[%clk 0:02:14]} 21. c3 {[%clk 0:02:05]}  c5 {[%clk 0:02:14]} 22. Bb5 {[%clk 0:02:00]}  Rd6 {[%clk 0:02:13]} 23. h5 {[%clk 0:01:58]}  cxd4 {[%clk 0:02:11]} 24. hxg6 {[%clk 0:01:58]}  hxg6 {[%clk 0:02:11]} 25. Rh8+ {[%clk 0:01:42]}  Ke7 {[%clk 0:02:10]} 26. Bxe8 {[%clk 0:01:31]}  Rxe8 {[%clk 0:02:09]} 27. Rxe8+ {[%clk 0:01:32]}  Kxe8 {[%clk 0:02:09]} 28. Rxd4 {[%clk 0:01:32]}  Rxd4 {[%clk 0:01:55]} 29. cxd4 {[%clk 0:01:33]}  Ke7 {[%clk 0:01:56]} 30. Kc2 {[%clk 0:01:32]}  Kd6 {[%clk 0:01:56]} 31. Kd3 {[%clk 0:01:32]}  Kd5 {[%clk 0:01:41]} 32. f4 {[%clk 0:01:28]}  b5 {[%clk 0:01:27]} 33. a3 {[%clk 0:01:16]}  a5 {[%clk 0:01:23]} 34. b3 {[%clk 0:01:15]}  a4 {[%clk 0:01:20]} 35. b4 {[%clk 0:01:14]}  Kc6 {[%clk 0:01:18]} 36. Ke4 {[%clk 0:01:13]}  Kd6 {[%clk 0:01:18]} 37. Ke3 {[%clk 0:01:13]}  Kc6 {[%clk 0:01:16]} 38. Ke4 {[%clk 0:01:12]}  Kd6 {[%clk 0:01:17]} 39. Ke3 {[%clk 0:01:12]}  Kc6 {[%clk 0:01:17]} 40. Ke4 {[%clk 0:01:12]} 1/2-1/2


[Site "https://www.chess.com"]